[Event "Szansa Chess Open 2022"]
[Site "Warsaw"]
[Date "2022.09.17"]
[Round "5"]
[White "Bartkiewicz, Pawel"]
[Black "Warcaba, Jakub"]
[Result "1/2-1/2"]
[ECO "B81"]
[WhiteElo "1938"]
[BlackElo "1625"]
[Annotator "TA"]
[PlyCount "130"]
[EventDate "2022.09.17"]
[EventCountry "POL"]
[SourceTitle "playchess.com"]
[Source "ChessBase"]
[SourceQuality "1"]
[TimeControl "900+10"]

{[%evp 14,130,51,40,70,49,52,44,71,46,45,10,57,49,89,59,68,64,224,201,229,95,89,80,79,70,684,175,177,162,165,150,253,247,253,222,1022,337,347,319,693,647,657,642,645,642,620,597,29992,678,678,666,606,408,655,645,640,634,620,0,618,608,594,573,568,561,598,483,503,460,29980,345,377,348,321,352,1635,575,2210,920,2202,1749,29991,1462,1123,468,449,449,441,441,441,437,441,441,441,412,399,320,298,257,254,245,388,388,357,26,45,67,120,0,0,0,0,0,0,-29994,0,0,0]} 1. e4 {[%emt 0:00:47]} c5 {[%emt 0:00:01]} 2. Nf3 {[%emt 0:00:02]} d6 {[%emt 0:00:01]} 3. d4 {[%emt 0:00:01]} cxd4 {[%emt 0:00:02]} 4. Nxd4 {[%emt 0:00:00]} Nf6 {[%emt 0:00:01]} 5. Nc3 {[%emt 0:00:01]} e6 {[%emt 0:00:01]} 6. g4 {[%emt 0:00:02]} h6 {[%emt 0:00:07]} 7. Rg1 {[%emt 0:00:01]} Nc6 {[%emt 0:00:31]} 8. Be3 $1 {[%emt 0:00:13] 8.Be3 scores better than 8.h4.} Nxd4 {[%emt 0:00:55] [#] B81: Sicilian Scheveningen: Keres Attack.} 9. Bxd4 $146 {[%emt 0:00:04]} ({Predecessor:} 9. Qxd4 e5 10. Bb5+ Bd7 11. Qd3 a6 12. Bxd7+ Qxd7 13. O-O-O Nxg4 14. Nd5 Nxe3 15. Qxe3 Qc6 16. Rg3 b5 17. Rd3 Rc8 18. Rc3 Qb7 19. Rxc8+ Qxc8 20. Qa7 f6 21. Rxg7 {1-0 (21) Davis,H-Bellisario,C (1371) ICCF email 2021}) 9... e5 {[%emt 0:00:04]} 10. Be3 {[%emt 0:00:02]} a6 {[%emt 0:00:17] White is slightly better.} 11. Bc4 {[%emt 0:01:27] White is more active.} Qa5 {[%emt 0:00:16]} 12. f3 {[%emt 0:00:31]} Be7 {[%emt 0:00:21]} (12... d5 $11 {was preferrable.} 13. Bxd5 (13. exd5 Ba3 $11) 13... Ba3) 13. Qd2 {[%emt 0:00:11]} Bd7 {[%emt 0:00:24]} 14. O-O-O {[%emt 0:00:15]} b5 $1 {[%emt 0:00:04]} 15. Bb3 {[%emt 0:00:09]} Qc7 $2 {[%emt 0:00:28]} ({Black should try} 15... b4 $1 $14 16. Nd5 Nxd5 17. Bxd5 (17. Qxd5 Qxd5 18. Bxd5 Rb8 $11) 17... Rc8) 16. h4 $1 $18 {[%emt 0:00:24]} (16. Nd5 Nxd5 17. Bxd5 Rc8 $14) 16... b4 {[%emt 0:00:23] [#]} 17. Nd5 {[%emt 0:00:19]} (17. Na4 $1 $18 {and the rest is easy.}) 17... Nxd5 $16 {[%emt 0:00:10]} 18. Qxd5 {[%emt 0:02:25]} O-O {[%emt 0:00:02]} 19. g5 $36 {[%emt 0:00:01][%mdl 2048] White is pushing.} hxg5 {[%emt 0:00:26][%mdl 8192]} (19... Be6 $14 20. Qd2 h5) 20. Bxg5 $2 {[%emt 0:00:39]} (20. hxg5 {aiming for g6.} g6 21. Rh1) 20... Be6 $18 {[%emt 0:00:07]} 21. Qd2 {[%emt 0:00:25]} Bxb3 {[%emt 0:00:25]} 22. axb3 {[%emt 0:02:03]} Rfd8 {[%emt 0:00:32]} (22... Rfc8 $16 23. Rg2 (23. Bxe7 Qxe7 24. Qh6 Qf8 $16) 23... f6) 23. Rg2 {[%emt 0:01:29]} a5 {[%emt 0:00:19]} 24. Rdg1 {[%emt 0:01:27] White wants to mate with Bxe7.} f6 $2 {[%emt 0:00:56]} (24... g6 $2 25. h5 d5 26. Bxe7 Qxe7 27. hxg6 $18) (24... Kf8 25. Bh6 Ke8) 25. Bh6 $2 {[%emt 0:00:32]} (25. Qd5+ Kh8 26. Bd2) 25... Bf8 {[%emt 0:00:02]} 26. h5 {[%emt 0:01:04]} Kh8 {[%emt 0:00:29] [#]} (26... Kh7 27. Qd5 (27. Rxg7+ Bxg7 28. Rxg7+ Qxg7 $16) 27... Rac8 28. Bxg7 Bxg7) 27. Rg6 $1 {[%emt 0:00:47]} a4 {[%emt 0:00:29]} 28. Bxg7+ $1 {[%emt 0:03:26]} Bxg7 {[%emt 0:00:18]} 29. Rh6+ {[%emt 0:00:15]} Kg8 {[%emt 0:00:38] Hoping for ...Kf8.} 30. Qd5+ {[%emt 0:00:03]} (30. Rhg6 axb3 31. Rxg7+ Qxg7 32. Qd5+ (32. Rxg7+ Kxg7 33. Qxb4 Ra1+ 34. Kd2 bxc2 $16) 32... Kh8 33. Rxg7 Kxg7 $16) 30... Qf7 {[%emt 0:00:14] [#] Strongly threatening ...Qxd5.} 31. Rh8+ $3 {[%emt 0:00:04][%mdl 512]} Kxh8 {[%emt 0:00:09]} 32. Qxf7 {[%emt 0:00:01][%csl Gg1][%cal Rf7g7]} Bh6+ {[%emt 0:00:33]} 33. Kd1 {[%emt 0:00:29] White threatens Rg6 and mate.} Bg5 {[%emt 0:00:14]} (33... Rf8 $142 34. Qg6 Bg5 35. Rxg5 fxg5 36. bxa4 Rxf3 37. Qxd6 g4 38. Qh6+ Kg8 39. Qg6+ Kh8 40. Qh6+ Kg8 41. Qg6+ Kh8 42. Qh6+) 34. bxa4 {[%emt 0:00:16]} Rf8 {[%emt 0:00:43]} 35. Qe7 {[%emt 0:00:08]} Rfe8 {[%emt 0:00:13]} 36. Qf7 {[%emt 0:00:42]} Rf8 $1 {[%emt 0:00:02]} 37. Qd7 {[%emt 0:00:12]} Rfd8 {[%emt 0:00:03]} 38. Qc6 {[%emt 0:00:09]} Rac8 {[%emt 0:00:12]} 39. Qb7 {[%emt 0:00:21]} d5 {[%emt 0:00:34]} 40. h6 {[%emt 0:00:09][%csl Gh6][%cal Rb7g7]} dxe4+ {[%emt 0:00:02]} 41. Ke1 {[%emt 0:00:11][%csl Gh6][%cal Rb7g7]} Bd2+ {[%emt 0:00:26]} (41... Rg8 $18 42. Qxe4 b3) 42. Ke2 $2 {[%emt 0:00:07]} (42. Kf1 Bxh6 43. Rg6 Rd1+ 44. Ke2 exf3+ 45. Kxd1 Rd8+ 46. Ke1 Bd2+ 47. Kf2) 42... Bxh6 {[%emt 0:00:10]} 43. fxe4 {[%emt 0:00:15] Really sharp!} Rxc2+ {[%emt 0:01:06]} 44. Kf3 {[%emt 0:00:01]} Rxb2 $2 {[%emt 0:00:42]} (44... Rcd2 45. Rh1 (45. Qxb4 f5 $11) 45... R8d7 46. Qxb4 (46. Rxh6+ Kg7 $14) 46... Kg7) 45. Rh1 {[%emt 0:00:13]} (45. Qf7 $142 Rd3+ 46. Kg4) 45... Rb3+ {[%emt 0:00:44]} 46. Kg4 {[%emt 0:00:01]} Rg8+ {[%emt 0:00:12]} 47. Kf5 {[%emt 0:00:01][%cal Rh1h6]} Rf3+ {[%emt 0:01:31]} 48. Ke6 {[%emt 0:00:01][%cal Rh1h6]} Rg6 {[%emt 0:00:07]} 49. Qc8+ {[%emt 0:00:28]} (49. a5 $142) 49... Kh7 {[%emt 0:00:04]} 50. Qd7+ {[%emt 0:00:04]} Rg7 {[%emt 0:00:09]} 51. Qd2 {[%emt 0:00:22]} Rg6 {[%emt 0:00:10]} 52. Qxb4 {[%emt 0:00:15]} f5+ {[%emt 0:00:38]} 53. Kxe5 {[%emt 0:00:02]} fxe4 {[%emt 0:00:03]} 54. Qb7+ {[%emt 0:00:03]} Kg8 {[%emt 0:00:33]} 55. Qc8+ {[%emt 0:00:13]} Rf8 {[%emt 0:00:13]} 56. Qc4+ {[%emt 0:00:03]} Kg7 {[%emt 0:00:08]} 57. Qd4 {[%emt 0:00:26]} Kg8 {[%emt 0:00:12]} (57... e3 {keeps fighting.} 58. Ke4+ Kg8) 58. Qd5+ {[%emt 0:00:09]} Kg7 {[%emt 0:00:06]} 59. Qb7+ $2 {[%emt 0:00:12]} (59. Kxe4 $18 {Threatens to win with Kd3.} Re8+ 60. Kd3 Rg3+ 61. Kc2) 59... Rf7 $11 {[%emt 0:00:03]} 60. Qb2 {[%emt 0:00:07]} Kg8 {[%emt 0:00:04]} (60... Kh7 $14) 61. Kxe4 {[%emt 0:00:16]} (61. Qb3 $16) 61... Rf4+ {[%emt 0:04:17]} 62. Kd5 {[%emt 0:00:08] Qb3 is the strong threat.} Rg5+ {[%emt 0:00:02]} 63. Ke6 {[%emt 0:00:12]} Rg6+ {[%emt 0:00:01]} 64. Kd7 $2 {[%emt 0:00:04][%mdl 8192]} (64. Kd5 $11 Rf5+ 65. Ke4 Rf4+ 66. Kd5 (66. Kd3 Rg3+ 67. Kc2 Rg2+ 68. Kb3 Rxb2+ $15)) 64... Rg7+ $2 {[%emt 0:00:02]} (64... Rf7+ {mates} 65. Kd8 Rd6+ 66. Kc8 Rc6+ 67. Kb8 Bf4+ 68. Qe5 Bxe5+ 69. Ka8 Rc8#) 65. Kc6 {[%emt 0:00:13]} Rg6+ {[%emt 0:00:02] What a bad dream for Black.  Weighted Error Value: White=0.76/Black=0.68} 1/2-1/2

[Event "Szansa Chess Open 2022"]
[Site "Warsaw"]
[Date "2022.09.17"]
[Round "5"]
[White "Adamski, Adam"]
[Black "Czarnecka, Lidia"]
[Result "0-1"]
[ECO "B20"]
[WhiteElo "1886"]
[BlackElo "1957"]
[Annotator "TA"]
[PlyCount "52"]
[EventDate "2022.09.17"]
[EventCountry "POL"]
[SourceTitle "playchess.com"]
[Source "ChessBase"]
[SourceQuality "1"]
[TimeControl "900+10"]

{[%evp 11,52,-18,-8,-26,-12,-27,-20,-24,-30,-25,-19,-30,-1,-39,10,-31,-22,-100,-91,-281,-302,-295,-268,-364,-337,-376,-389,-399,-352,-437,-422,-496,-453,-523,-497,-487,-465,-472,-458,-553,-545,-585,-600]} 1. e4 {[%emt 0:00:33]} c5 {[%emt 0:00:02]} 2. a3 {[%emt 0:00:03]} e6 {[%emt 0:00:03]} 3. b4 {[%emt 0:00:01]} cxb4 {[%emt 0:00:13]} 4. axb4 {[%emt 0:00:01]} Bxb4 {[%emt 0:00:01]} 5. c3 {[%emt 0:00:01]} Be7 {[%emt 0:00:28]} 6. d4 {[%emt 0:00:04]} Nf6 {[%emt 0:00:07]} 7. Bd3 {[%emt 0:00:45] B20: Sicilian: Unusual White 2nd moves.} d6 {[%emt 0:00:15]} 8. Nf3 {[%emt 0:00:45]} O-O 9. O-O {[%emt 0:00:33] The position is equal.} Nc6 {[%emt 0:00:15]} 10. Ba3 {[%emt 0:03:07] [#]} a6 $146 {[%emt 0:01:01]} ({Predecessor:} 10... Qc7 11. Qc2 h6 12. Nbd2 b6 13. c4 Nd7 14. Nb3 Bb7 15. Rfc1 a5 16. Rab1 Rfc8 {0-1 (51) Remacle,A (1643)-Niepceron,A (1859) Agneaux 2015}) 11. Nbd2 {[%emt 0:02:38]} Qc7 {[%emt 0:00:28]} 12. Nc4 {[%emt 0:01:35]} e5 {[%emt 0:05:05]} (12... d5 $15 13. Ncd2 Bxa3 14. Rxa3 e5) 13. d5 {[%emt 0:01:45]} Nb8 {[%emt 0:00:02]} 14. Nfxe5 {[%emt 0:01:07] [#]} b5 $1 $17 {[%emt 0:00:10]} (14... dxe5 $2 15. d6 Bxd6 16. Bxd6 $18) 15. Ne3 $2 {[%emt 0:02:40] This move loses the game for White.} (15. Bb4 $17 {is a better defense.}) 15... dxe5 $19 {[%emt 0:00:09][%cal Bd6e5,Be5e4][%mdl 32]} 16. Bxe7 {[%emt 0:00:01]} Qxe7 {[%emt 0:00:01]} 17. Bxb5 {[%emt 0:00:01]} Nxe4 {[%emt 0:00:30]} 18. Qd3 {[%emt 0:00:22]} Nd6 {[%emt 0:00:16]} 19. Ba4 Nd7 {[%emt 0:00:25]} 20. Bc2 {[%emt 0:00:24][%csl Gc2][%cal Rd3h7] [#]} e4 {[%emt 0:00:08] Black is clearly winning.} 21. Qe2 {[%emt 0:00:07]} Bb7 {[%emt 0:00:06]} 22. Rfd1 {[%emt 0:00:20]} Rfc8 {[%emt 0:00:17]} 23. c4 {[%emt 0:00:28]} Rc5 {[%emt 0:00:41]} 24. Rab1 {[%emt 0:00:49]} Rac8 {[%emt 0:00:48]} 25. Bb3 {[%emt 0:00:49]} Ne5 {[%emt 0:00:12]} 26. Rd4 {[%emt 0:00:08]} a5 {[%emt 0:00:14] Weighted Error Value: White=0.46/Black=0.11 (very precise)} 0-1

[Event "Szansa Chess Open 2022"]
[Site "Warsaw"]
[Date "2022.09.17"]
[Round "5"]
[White "Rekuc, Patryk"]
[Black "Chomczyk, Marek"]
[Result "0-1"]
[ECO "C42"]
[WhiteElo "1777"]
[BlackElo "2327"]
[Annotator "ChessBase"]
[PlyCount "68"]
[EventDate "2022.09.17"]
[EventCountry "POL"]
[SourceTitle "playchess.com"]
[Source "ChessBase"]
[SourceQuality "1"]
[TimeControl "900+10"]

1. e4 {[%emt 0:00:02]} e5 {[%emt 0:00:01]} 2. Nf3 {[%emt 0:00:02]} Nf6 {[%emt 0:00:01]} 3. Nxe5 {[%emt 0:00:03]} Nxe4 {[%emt 0:00:01]} 4. d4 {[%emt 0:00:05]} d5 {[%emt 0:00:02]} 5. Bd3 {[%emt 0:00:02]} Nd7 {[%emt 0:00:02]} 6. Nxd7 {[%emt 0:00:26]} Bxd7 {[%emt 0:00:04]} 7. O-O {[%emt 0:00:03]} Bd6 {[%emt 0:00:01]} 8. Qe2 {[%emt 0:00:23]} O-O {[%emt 0:01:47]} 9. Bxe4 {[%emt 0:01:23]} dxe4 {[%emt 0:00:02]} 10. c4 {[%emt 0:00:17]} Qh4 {[%emt 0:02:29]} 11. g3 {[%emt 0:00:21]} Qg4 {[%emt 0:00:02]} 12. Qxg4 {[%emt 0:00:12]} Bxg4 {[%emt 0:00:02]} 13. Re1 {[%emt 0:00:06]} f5 {[%emt 0:00:44]} 14. c5 {[%emt 0:00:04]} Be7 {[%emt 0:00:03]} 15. Bf4 {[%emt 0:00:02]} Rad8 {[%emt 0:00:13]} 16. Be5 {[%emt 0:00:34]} Bf6 {[%emt 0:00:26]} 17. Bxc7 {[%emt 0:00:03]} Rxd4 {[%emt 0:00:09]} 18. Bd6 {[%emt 0:00:02]} Rxd6 {[%emt 0:01:59]} 19. cxd6 {[%emt 0:00:01]} Bxb2 {[%emt 0:00:02]} 20. Nd2 {[%emt 0:00:13]} Rd8 {[%emt 0:00:11]} 21. Rab1 {[%emt 0:00:46]} Bc3 {[%emt 0:00:04]} 22. Rxb7 {[%emt 0:00:33]} Bxd2 {[%emt 0:00:19]} 23. Reb1 {[%emt 0:00:07]} Rxd6 {[%emt 0:02:38]} 24. Rxa7 {[%emt 0:00:11]} h5 {[%emt 0:00:18]} 25. a4 {[%emt 0:00:39]} e3 {[%emt 0:00:26]} 26. Ra8+ {[%emt 0:00:21]} Kh7 {[%emt 0:00:03]} 27. fxe3 {[%emt 0:00:05]} Bxe3+ {[%emt 0:00:02]} 28. Kf1 {[%emt 0:00:02]} Rd2 {[%emt 0:00:15]} 29. Rb3 {[%emt 0:00:25]} Bf3 {[%emt 0:00:15]} 30. Rxe3 {[%emt 0:00:06]} Bxa8 {[%emt 0:00:02]} 31. Re5 {[%emt 0:00:11]} Be4 {[%emt 0:00:26]} 32. h4 {[%emt 0:00:03]} Kg6 {[%emt 0:00:04]} 33. a5 {[%emt 0:00:08]} Rd5 {[%emt 0:00:21]} 34. Re6+ {[%emt 0:00:08]} Kf7 {[%emt 0:00:02]} 0-1

[Event "Szansa Chess Open 2022"]
[Site "Warsaw"]
[Date "2022.09.17"]
[Round "5"]
[White "Wieckowski, Michal"]
[Black "Fiszer, Bartosz"]
[Result "0-1"]
[ECO "B32"]
[WhiteElo "1684"]
[BlackElo "2232"]
[Annotator "TA"]
[PlyCount "60"]
[EventDate "2022.09.17"]
[EventCountry "POL"]
[SourceTitle "playchess.com"]
[Source "ChessBase"]
[SourceQuality "1"]
[TimeControl "900+10"]

{[%evp 14,60,39,31,33,41,26,6,9,0,-1,0,0,-17,-22,-14,-6,-7,-10,-11,-11,-11,132,139,127,-152,-155,-276,-152,-171,-158,-196,-187,-274,-266,-276,-265,-315,-339,-332,-306,-291,-263,-1270,-1261,-1275,-1165,-1738,-1697]} 1. e4 {[%emt 0:00:02]} c5 {[%emt 0:00:01]} 2. Nf3 {[%emt 0:00:01][%cal Bg1f3,Bf3d4,Bd4b5,Bb5a3,Ba3c4][%mdl 32]} Nc6 {[%emt 0:00:01]} 3. d4 {[%emt 0:00:02]} cxd4 {[%emt 0:00:02]} 4. Nxd4 {[%emt 0:00:01]} e5 {[%emt 0:00:01]} 5. Nb5 {[%emt 0:00:06]} d6 {[%emt 0:00:02]} 6. N1c3 {[%emt 0:00:06]} a6 {[%emt 0:00:01]} 7. Na3 {[%emt 0:00:01]} Be7 {[%emt 0:00:01]} 8. Nc4 {[%emt 0:00:49]} b5 {[%emt 0:00:20] B32: Sicilian: Löwenthal and Kalashnikov Variations.} 9. Ne3 {[%emt 0:00:02]} ({Much weaker is} 9. Qd5 Bb7 10. Ne3 Nf6 $11) 9... Nf6 {[%emt 0:00:02]} 10. f3 {[%emt 0:00:23]} O-O {[%emt 0:00:13] The position is equal.} 11. Ncd5 {[%emt 0:00:13]} Nxd5 {[%emt 0:00:25]} 12. Nxd5 {[%emt 0:00:01]} Bg5 {[%emt 0:00:03] [#]} 13. Be2 $146 {[%emt 0:00:39]} ({Predecessor:} 13. Bd3 Be6 14. a4 Bxc1 15. Qxc1 Qh4+ 16. g3 Qh5 17. Qe3 Nd4 18. O-O Rab8 19. axb5 axb5 {0-1 (56) Fidlin,S (1862)-Martin,J (2387) Playchess.com INT 2020}) 13... Be6 {[%emt 0:00:34]} 14. O-O {[%emt 0:00:04]} Bxd5 {[%emt 0:03:41]} 15. Qxd5 {[%emt 0:00:25]} Nd4 {[%emt 0:00:23]} 16. Bd3 {[%emt 0:02:18]} Qb6 {[%emt 0:00:07][%csl LRc2,LRf3] aiming for ...Bxc1.} 17. Kh1 {[%emt 0:00:36]} Rac8 {[%emt 0:00:09]} 18. Bxg5 $16 {[%emt 0:03:46]} Rc5 {[%emt 0:00:15] [#]} 19. Qxc5 {[%emt 0:00:04][%mdl 8192]} dxc5 $17 {[%emt 0:00:08]} 20. c3 {[%emt 0:00:10]} (20. Rfc1 $17 {is a better defense.}) 20... Ne6 {[%emt 0:00:06]} (20... c4 $19 {Strongly threatening ...Ne6.} 21. cxd4 cxd3) 21. Be3 {[%emt 0:00:02]} Rd8 $36 {[%emt 0:00:09][%mdl 2048] Black is really pushing.} 22. Be2 {[%emt 0:00:11]} Nf4 {[%emt 0:00:30]} 23. Bxf4 {[%emt 0:00:03]} (23. Rfe1 $142) 23... exf4 $19 {[%emt 0:00:01]} 24. Rfd1 {[%emt 0:00:02] Prevents Rd2.} g6 {[%emt 0:00:50]} 25. Rxd8+ {[%emt 0:00:08]} Qxd8 {[%emt 0:00:02] KQ-KRB} 26. Rd1 {[%emt 0:00:01] Inhibits Qd2.} Qa5 {[%emt 0:00:01]} 27. a3 {[%emt 0:00:08]} Qa4 {[%emt 0:02:34] [#] Threatens to win with ...Qc2.} 28. g3 $2 {[%emt 0:00:24]} (28. Rd2) 28... Qc2 {[%emt 0:00:21][%csl LRb2,LRe2] Black is clearly winning.} 29. Rd8+ {[%emt 0:00:19]} Kg7 {[%emt 0:00:01]} 30. Bd1 {[%emt 0:00:08]} Qf2 {[%emt 0:00:05] Weighted Error Value: White=0.79/Black=0.19 (very precise)} 0-1

[Event "Szansa Chess Open 2022"]
[Site "Warsaw"]
[Date "2022.09.17"]
[Round "5"]
[White "Mazur, Wojciech"]
[Black "Vasynda, Oleksandr"]
[Result "0-1"]
[ECO "A06"]
[WhiteElo "1629"]
[BlackElo "1866"]
[Annotator "NA COMBH"]
[PlyCount "66"]
[EventDate "2022.09.17"]
[EventCountry "POL"]
[SourceTitle "playchess.com"]
[Source "ChessBase"]
[SourceQuality "1"]
[TimeControl "900+10"]

1. Nf3 {[%emt 0:00:03]} d5 {[%emt 0:00:03]} 2. b3 {[%emt 0:00:04]} c5 {[%emt 0:00:03]} 3. Bb2 {[%emt 0:00:01]} Nc6 {[%emt 0:00:02]} 4. e3 {[%emt 0:00:07]} Bg4 {[%emt 0:00:10]} 5. Be2 {[%emt 0:00:06]} Bxf3 {[%emt 0:00:55]} 6. Bxf3 {[%emt 0:00:03]} e5 {[%emt 0:00:01]} 7. d4 {[%emt 0:01:02]} cxd4 {[%emt 0:00:24]} 8. exd4 {[%emt 0:00:27]} e4 {[%emt 0:00:03]} 9. Be2 {[%emt 0:00:07]} Nf6 {[%emt 0:00:33]} 10. O-O {[%emt 0:00:10]} Bd6 {[%emt 0:00:50]} 11. Re1 {[%emt 0:00:30]} O-O {[%emt 0:00:09]} 12. Nd2 {[%emt 0:00:03]} Re8 {[%emt 0:00:59]} 13. Nf1 {[%emt 0:00:05]} Qd7 {[%emt 0:00:40]} 14. a3 {[%emt 0:01:19]} Qf5 {[%emt 0:01:24]} 15. Ne3 {[%emt 0:00:35]} Qg6 {[%emt 0:03:04]} 16. c4 {[%emt 0:00:14]} dxc4 {[%emt 0:00:09]} 17. bxc4 {[%emt 0:00:02]} Rad8 {[%emt 0:00:11]} 18. Qb3 {[%emt 0:02:08]} Re7 {[%emt 0:01:23]} 19. Rad1 {[%emt 0:01:00]} Bf4 {[%emt 0:01:02]} 20. c5 {[%emt 0:06:29]} Bxe3 {[%emt 0:02:13]} 21. fxe3 {[%emt 0:00:01]} Nd5 {[%emt 0:00:01]} 22. Rf1 {[%emt 0:00:32]} Na5 {[%emt 0:00:38]} 23. Qa4 {[%emt 0:01:02]} Nxe3 {[%emt 0:00:03]} 24. Rf2 {[%emt 0:00:02]} Nxd1 {[%emt 0:00:22]} 25. Bxd1 {[%emt 0:00:11]} e3 {[%emt 0:00:03]} 26. Re2 {[%emt 0:00:07]} b6 {[%emt 0:00:26]} 27. Bc2 {[%emt 0:00:59]} Qc6 {[%emt 0:01:19]} 28. Qb4 {[%emt 0:00:18]} Qc7 {[%emt 0:00:43]} 29. d5 {[%emt 0:01:19]} Rxd5 {[%emt 0:01:12]} 30. Qh4 {[%emt 0:00:39]} h6 {[%emt 0:00:09]} 31. cxb6 {[%emt 0:00:12]} axb6 {[%emt 0:00:22]} 32. Qg4 {[%emt 0:00:20]} f5 {[%emt 0:00:34]} 33. Bxf5 {[%emt 0:00:07]} Rd1+ {[%emt 0:00:01]} 0-1

[Event "Szansa Chess Open 2022"]
[Site "Warsaw"]
[Date "2022.09.17"]
[Round "6"]
[White "Gumularz, Szymon"]
[Black "Jarmula, Lukasz"]
[Result "1/2-1/2"]
[ECO "A06"]
[WhiteElo "2532"]
[BlackElo "2457"]
[Annotator "ChessBase"]
[PlyCount "147"]
[EventDate "2022.09.17"]
[EventCountry "POL"]
[SourceTitle "playchess.com"]
[Source "ChessBase"]
[SourceQuality "1"]
[TimeControl "900+10"]

1. Nf3 {[%emt 0:00:03]} d5 {[%emt 0:00:01]} 2. e3 {[%emt 0:00:01]} Nf6 {[%emt 0:00:07]} 3. c4 {[%emt 0:00:03]} e6 {[%emt 0:00:02]} 4. Nc3 {[%emt 0:00:02]} c5 {[%emt 0:00:16]} 5. cxd5 {[%emt 0:00:05]} exd5 {[%emt 0:00:19]} 6. Bb5+ {[%emt 0:00:04]} Bd7 {[%emt 0:00:20]} 7. Bxd7+ {[%emt 0:00:03]} Qxd7 {[%emt 0:00:05]} 8. O-O {[%emt 0:00:05]} Nc6 {[%emt 0:00:09]} 9. d4 {[%emt 0:00:02]} cxd4 {[%emt 0:00:29]} 10. Nxd4 {[%emt 0:00:02]} Bc5 {[%emt 0:01:25]} 11. Nce2 {[%emt 0:00:03]} O-O {[%emt 0:00:13]} 12. b3 {[%emt 0:00:02]} Rfe8 {[%emt 0:02:44]} 13. Bb2 {[%emt 0:00:02]} Ne4 {[%emt 0:00:33]} 14. Rc1 {[%emt 0:00:03]} Bd6 {[%emt 0:00:26]} 15. Nf3 {[%emt 0:00:12]} Rad8 {[%emt 0:00:17]} 16. Qd3 {[%emt 0:00:04]} Re6 {[%emt 0:01:13]} 17. Rfd1 {[%emt 0:00:15]} Rg6 {[%emt 0:00:37]} 18. Ng3 {[%emt 0:00:12]} Bxg3 {[%emt 0:00:17]} 19. hxg3 {[%emt 0:00:09]} Rh6 {[%emt 0:00:46]} 20. Qe2 {[%emt 0:00:22]} Qg4 {[%emt 0:00:33]} 21. Nd4 {[%emt 0:00:11]} Qg5 {[%emt 0:01:05]} 22. Nxc6 {[%emt 0:00:09]} bxc6 {[%emt 0:00:02]} 23. Qf3 {[%emt 0:00:12]} Qe7 {[%emt 0:00:46]} 24. Qf4 {[%emt 0:00:29]} Rg6 {[%emt 0:00:48]} 25. Qe5 {[%emt 0:01:14]} Qf8 {[%emt 0:00:06]} 26. Qc7 {[%emt 0:00:08]} Rc8 {[%emt 0:00:20]} 27. Qb7 {[%emt 0:00:06]} Rb8 {[%emt 0:00:21]} 28. Qxa7 {[%emt 0:00:13]} Ra8 {[%emt 0:00:04]} 29. Qb7 {[%emt 0:00:02]} Rxa2 {[%emt 0:00:22]} 30. Rc2 {[%emt 0:00:50]} Qa8 {[%emt 0:00:24]} 31. Qxa8+ {[%emt 0:00:26]} Rxa8 {[%emt 0:00:02]} 32. Rdc1 {[%emt 0:00:01]} Rb8 {[%emt 0:01:18]} 33. Rxc6 {[%emt 0:03:36]} Rxc6 {[%emt 0:00:04]} 34. Rxc6 {[%emt 0:00:01]} f6 {[%emt 0:00:07]} 35. g4 {[%emt 0:01:05]} Rxb3 {[%emt 0:00:15]} 36. Rc2 {[%emt 0:00:01]} Nd6 {[%emt 0:00:57]} 37. Bd4 Nb5 {[%emt 0:00:13]} 38. Rc5 {[%emt 0:00:33]} Nxd4 {[%emt 0:01:28]} 39. exd4 {[%emt 0:00:01]} Kf7 {[%emt 0:00:14]} 40. Rxd5 {[%emt 0:00:12]} Ke6 {[%emt 0:00:04]} 41. Rd8 {[%emt 0:00:02]} Rb4 {[%emt 0:00:39]} 42. Re8+ {[%emt 0:00:57]} Kd7 {[%emt 0:00:45]} 43. Re4 {[%emt 0:00:15]} Kd6 {[%emt 0:00:07]} 44. f3 {[%emt 0:00:02]} Rb2 {[%emt 0:00:14]} 45. Kh2 {[%emt 0:00:03]} Rd2 {[%emt 0:00:19]} 46. Kg3 {[%emt 0:00:04]} g5 {[%emt 0:00:07]} 47. Re8 {[%emt 0:01:08]} Rxd4 {[%emt 0:00:07]} 48. Rh8 {[%emt 0:00:01]} Ke6 {[%emt 0:00:19]} 49. Rxh7 {[%emt 0:00:02]} Rd2 {[%emt 0:00:02]} 50. Rh1 {[%emt 0:00:04]} Re2 {[%emt 0:00:04]} 51. Rf1 {[%emt 0:00:04]} Kf7 {[%emt 0:00:06]} 52. Rf2 {[%emt 0:00:03]} Re1 {[%emt 0:00:08]} 53. Rb2 {[%emt 0:00:02]} Rf1 {[%emt 0:00:13]} 54. Rf2 {[%emt 0:00:08]} Re1 {[%emt 0:00:02]} 55. Kh2 {[%emt 0:00:01]} Kg6 {[%emt 0:00:03]} 56. Rb2 {[%emt 0:00:11]} Rd1 {[%emt 0:00:04]} 57. g3 {[%emt 0:00:04]} Rd3 {[%emt 0:00:28]} 58. Kg2 {[%emt 0:00:01]} Rc3 {[%emt 0:00:07]} 59. Kf2 {[%emt 0:00:02]} Ra3 {[%emt 0:00:02]} 60. Rd2 {[%emt 0:00:02]} Rb3 {[%emt 0:00:03]} 61. Ke2 {[%emt 0:00:01]} Ra3 {[%emt 0:00:09]} 62. Kf2 {[%emt 0:00:16]} Rb3 {[%emt 0:00:01]} 63. Re2 {[%emt 0:00:08]} Ra3 {[%emt 0:00:04]} 64. f4 {[%emt 0:00:01]} Rb3 {[%emt 0:00:47]} 65. Rd2 {[%emt 0:00:16]} Rb4 {[%emt 0:00:16]} 66. Ke3 {[%emt 0:00:06]} Rb3+ {[%emt 0:00:10]} 67. Rd3 {[%emt 0:00:06]} Rxd3+ {[%emt 0:00:18]} 68. Kxd3 {[%emt 0:00:01]} f5 {[%emt 0:00:02]} 69. Ke3 {[%emt 0:00:45]} fxg4 {[%emt 0:00:25]} 70. Ke4 {[%emt 0:00:16]} gxf4 {[%emt 0:00:03]} 71. Kxf4 {[%emt 0:00:02]} Kf6 {[%emt 0:00:01]} 72. Kxg4 {[%emt 0:00:02]} Kg6 {[%emt 0:00:01]} 73. Kf4 {[%emt 0:00:03]} Kf6 {[%emt 0:00:01]} 74. g4 {[%emt 0:00:03]} 1/2-1/2